bitfinex-derivatives/quotes_BNBF0:USTF0_20250529
["timestamp","ask_amount","ask_price","bid_price","bid_amount"]
[1748491436184,0.29121831,686.77,685.34,0.56608961]
[1748491436483,0.29121831,686.77,685.27,0.478]
[1748491436777,0.29121831,686.77,685.28,0.56610189]
[1748491436981,0.29121831,686.77,685.29,0.56610189]
[1748491437188,0.29121831,686.77,685.27,0.478]
[1748491437590,0.29121831,686.77,685.28,0.56610513]
[1748491437786,0.29121831,686.77,685.29,0.56610513]
[1748491438090,0.29121831,686.77,685.3,0.56609408]
[1748491438291,0.29121831,686.77,685.31,0.56609408]
[1748491438485,0.29121831,686.77,685.32,0.56609485]
[1748491438683,0.29121831,686.77,685.33,0.56609485]
[1748491438885,0.29121831,686.77,685.34,0.56609485]
[1748491439086,0.29121831,686.77,685.35,0.56610591]
[1748491439287,0.29121831,686.77,685.36,0.56613773]
[1748491439494,0.29121831,686.77,685.37,0.56613773]
[1748491439692,0.29121831,686.77,685.38,0.56621842]
[1748491439889,0.29121831,686.77,685.39,0.56621842]
[1748491440089,0.29121831,686.77,685.29,0.408]
[1748491440392,0.29121831,686.77,685.3,0.56605198]
[1748491440590,0.29121831,686.77,685.31,0.56605198]
[1748491440789,0.29121831,686.77,685.32,0.56605198]
[1748491440988,0.29121831,686.77,685.33,0.56605198]
[1748491441185,0.29121831,686.77,685.34,0.56605164]
[1748491441386,0.29121831,686.77,685.35,0.56607535]
[1748491441686,0.29121831,686.77,685.29,0.408]
[1748491442087,0.29121831,686.77,685.3,0.56607476]
[1748491442291,0.29121831,686.77,685.31,0.5660738]
[1748491442591,0.29121831,686.77,685.29,0.408]
[1748491443189,0.29121831,686.77,685.3,0.56610137]
[1748491443389,0.29121831,686.77,685.31,0.56610139]
[1748491443585,0.29121831,686.77,685.32,0.56610139]
[1748491443886,0.29121831,686.77,685.29,0.408]
[1748491443887,0.29121831,686.77,685.33,0.56610139]
[1748491444090,0.29121831,686.77,685.34,0.56593718]
[1748491444285,0.29121831,686.77,685.29,0.408]
[1748491444487,0.29121831,686.77,685.3,0.56598055]
[1748491444686,0.29121831,686.77,685.31,0.56598055]
[1748491444886,0.29121831,686.77,685.32,0.56575023]
[1748491445190,0.29121831,686.77,685.29,0.408]
[1748491445388,0.29121831,686.77,685.3,0.56573536]
[1748491445590,0.29121831,686.77,685.29,0.408]
[1748491446389,0.29121831,686.77,685.3,0.56575277]
[1748491446591,0.29121831,686.77,685.29,0.408]
[1748491447387,0.29121831,686.77,685.3,0.56578433]
[1748491447590,0.29121831,686.77,685.31,0.56578356]
[1748491447791,0.29121831,686.77,685.29,0.408]
[1748491447792,0.29121831,686.77,685.32,0.56582016]
[1748491447991,0.29121831,686.77,685.33,0.56582016]
[1748491448186,0.29121831,686.77,685.34,0.56582016]
[1748491448391,0.29121831,686.77,685.29,0.408]
[1748491448793,0.29121831,686.77,685.3,0.5657079]
[1748491449089,0.29121831,686.77,685.29,0.408]
[1748491449491,0.29121831,686.77,685.3,0.56575479]
[1748491449694,0.29121831,686.77,685.29,0.408]
[1748491449994,0.29121831,686.77,685.3,0.56575584]
[1748491450192,0.29121831,686.77,685.31,0.56575588]
[1748491450388,0.29121831,686.77,685.32,0.5657564]
[1748491450590,0.29121831,686.77,685.29,0.408]
[1748491451194,0.29121831,686.77,685.3,0.56580936]
[1748491451394,0.29121831,686.77,685.29,0.408]
[1748491452700,0.29121831,686.77,685.3,0.56594431]
[1748491453000,0.29121831,686.77,685.29,0.408]
[1748491453295,0.29121831,686.77,685.3,0.56594307]
[1748491453493,0.29121831,686.77,685.29,0.408]
[1748491453692,0.29121831,686.77,685.3,0.56602646]
[1748491453893,0.29121831,686.77,685.31,0.56602766]
[1748491454099,0.29121831,686.77,685.32,0.56602766]
[1748491454302,0.29121831,686.77,685.33,0.5658781]
[1748491454599,0.29121831,686.77,685.34,0.5658781]
[1748491454800,0.29121831,686.77,685.35,0.5658781]
[1748491455099,0.29121831,686.77,685.36,0.56596825]
[1748491455299,0.29121831,686.77,685.37,0.56596782]
[1748491455495,0.29121831,686.77,685.38,0.56596782]
[1748491455699,0.29121831,686.77,685.39,0.56596782]
[1748491455894,0.29121831,686.77,685.4,0.56582172]
[1748491456098,0.29121831,686.77,685.41,0.56582172]
[1748491456298,0.29121831,686.77,685.29,0.408]
[1748491456494,0.29121831,686.77,685.3,0.5657999]
[1748491456695,0.29121831,686.77,685.31,0.5657999]
[1748491456895,0.29121831,686.77,685.32,0.56579986]
[1748491457097,0.29121831,686.77,685.33,0.56579986]
[1748491457298,0.29121831,686.77,685.34,0.56579986]
[1748491457500,0.29121831,686.77,685.35,0.56569241]
[1748491457700,0.29121831,686.77,685.36,0.56567181]
[1748491457894,0.29121831,686.77,685.37,0.56567181]
[1748491458101,0.29121831,686.77,685.29,0.408]
[1748491459097,0.29121831,686.77,685.3,0.56565148]
[1748491459308,0.29121831,686.77,685.31,0.56565148]
[1748491459506,0.29121831,686.77,685.29,0.408]
[1748491461100,0.29121831,686.77,685.3,0.56561739]
[1748491461306,0.29121831,686.77,685.29,0.408]
[1748491462999,0.29121831,686.77,685.3,0.56553973]
[1748491463200,0.29121831,686.77,685.29,0.408]
[1748491464602,0.29121831,686.77,685.3,0.56552374]
[1748491464807,0.29121831,686.77,685.31,0.56552374]
[1748491465001,0.29121831,686.77,685.32,0.56552374]
[1748491465198,0.29121831,686.77,685.33,0.56552374]
[1748491465499,0.29121831,686.77,685.29,0.408]
[1748491465500,0.29121831,686.77,685.34,0.56555588]
[1748491465700,0.29121831,686.77,685.35,0.56555588]
[1748491465899,0.29121831,686.77,685.36,0.56555588]
[1748491466198,0.29121831,686.77,685.37,0.56555586]
[1748491466399,0.29121831,686.77,685.38,0.56555108]
[1748491466605,0.29121831,686.77,685.39,0.56555108]
[1748491466801,0.29121831,686.77,685.4,0.56555108]
[1748491467003,0.29121831,686.77,685.41,0.5655494]
[1748491467211,0.29121831,686.77,685.42,0.5655493]
[1748491467509,0.29121831,686.77,685.27,0.478]
[1748491467909,0.29121831,686.77,685.28,0.56552431]
[1748491468109,0.29121831,686.77,685.29,0.56552431]
[1748491468409,0.29121831,686.77,685.3,0.56553162]
[1748491468609,0.29121831,686.77,685.31,0.56553162]
[1748491468809,0.29121831,686.77,685.32,0.56553212]
[1748491469012,0.29121831,686.77,685.33,0.56553212]
[1748491469211,0.29121831,686.77,685.34,0.56553212]
[1748491469406,0.29121831,686.77,685.35,0.56551762]
[1748491469607,0.29121831,686.77,685.36,0.56551762]
[1748491469807,0.29121831,686.77,685.37,0.5655178]
[1748491470011,0.29121831,686.77,685.38,0.5655178]
[1748491470210,0.29121831,686.77,685.39,0.5655178]
[1748491470412,0.29121831,686.77,685.4,0.5655448]
[1748491470714,0.29121831,686.77,685.41,0.56553309]
[1748491470905,0.29121831,686.77,685.42,0.56553309]
[1748491471109,0.29121831,686.77,685.43,0.5655646]
[1748491471306,0.29121831,686.77,685.44,0.5655646]
[1748491471506,0.29121831,686.77,685.45,0.5655646]
[1748491471707,0.29121831,686.77,685.46,0.5655646]
[1748491471911,0.29121831,686.77,685.47,0.5655646]
[1748491472115,0.29121831,686.77,685.48,0.5655646]
[1748491472321,0.29121831,686.77,685.27,0.478]
[1748491472514,0.29121831,686.77,685.28,0.56558584]
[1748491472714,0.29121831,686.77,685.29,0.56558584]
[1748491472914,0.29121831,686.77,685.3,0.56561958]
[1748491473117,0.29121831,686.77,685.31,0.56561969]
[1748491473318,0.29121831,686.77,685.27,0.478]
[1748491473613,0.29121831,686.77,684.73,0.46368648]
[1748491473816,0.29121831,686.77,684.74,1.02930158]
[1748491474015,0.29121831,686.77,684.75,0.56564895]
[1748491474220,0.29121831,686.77,684.76,0.56564895]
[1748491474420,0.29121831,686.77,684.77,0.56564895]
[1748491474620,0.29121831,686.77,684.78,0.56564895]
[1748491474919,0.29121831,686.77,685.0,0.46368648]
[1748491475116,0.29121831,686.77,685.01,0.56566747]
[1748491475521,0.29121831,686.77,684.98,0.46368648]
[1748491475715,0.29121831,686.77,684.99,0.56569213]
[1748491475917,0.29121831,686.77,685.0,0.56569213]
[1748491476118,0.29121831,686.77,685.01,0.56569213]
[1748491476321,0.29121831,686.77,684.98,0.46368648]
[1748491476516,0.29121831,686.77,684.99,0.56569275]
[1748491476719,0.29121831,686.77,685.0,0.56572378]
[1748491476917,0.29121831,686.77,685.01,0.56572378]
[1748491477118,0.29121831,686.77,685.02,0.56575794]
[1748491477322,0.29121831,686.77,685.03,0.56575367]
[1748491477520,0.29121831,686.77,685.04,0.56575367]
[1748491477719,0.29121831,686.77,685.05,0.56575367]
[1748491477920,0.29121831,686.77,685.06,0.56575367]
[1748491478219,0.29121831,686.77,685.07,0.56575367]
[1748491478423,0.29121831,686.77,685.08,0.56582256]
[1748491478721,0.29121831,686.77,685.0,0.45]
[1748491480922,0.29121831,686.77,685.01,0.5659213]
[1748491481223,0.29121831,686.77,685.02,0.5659207]
[1748491481527,0.29121831,686.77,685.0,0.45]
[1748491481724,0.29121831,686.77,685.01,0.56595173]
[1748491481927,0.29121831,686.77,685.02,0.56595173]
[1748491482126,0.29121831,686.77,685.03,0.56595251]
[1748491482328,0.29121831,686.77,685.04,0.56595251]
[1748491482627,0.29121831,686.77,685.05,0.56595251]
[1748491482928,0.29121831,686.77,685.06,0.56595251]
[1748491483136,0.29121831,686.77,685.07,0.56597765]
[1748491483328,0.29121831,686.77,685.08,0.56597765]
[1748491483529,0.29121831,686.77,685.0,0.45]
[1748491483828,0.29121831,686.77,685.01,0.56597639]
[1748491484024,0.29121831,686.77,685.02,0.56597639]
[1748491484223,0.29121831,686.77,685.03,0.56597639]
[1748491484427,0.29121831,686.77,685.04,0.56597639]
[1748491484625,0.29121831,686.77,685.05,0.56597639]
[1748491484825,0.29121831,686.77,685.06,0.56602706]
[1748491485023,0.29121831,686.77,685.0,0.45]
[1748491485229,0.29121831,686.77,685.01,0.56597327]
[1748491485423,0.29121831,686.77,685.0,0.45]
[1748491486024,0.29121831,686.77,685.01,0.56598623]
[1748491486326,0.29121831,686.77,685.02,0.56598707]
[1748491486526,0.29121831,686.77,685.03,0.56598718]
[1748491486732,0.29121831,686.77,685.04,0.56598718]
[1748491487028,0.29121831,686.77,685.0,0.45]
[1748491487230,0.29121831,686.77,685.01,0.56601418]
[1748491487527,0.29121831,686.77,685.0,0.45]
[1748491487725,0.29121831,686.77,685.01,0.56603071]
[1748491488030,0.29121831,686.77,685.02,0.56604543]
[1748491488224,0.29121831,686.77,685.03,0.56604543]
[1748491488424,0.29121831,686.77,685.04,0.56604543]
[1748491488624,0.29121831,686.77,685.05,0.56604543]
[1748491488929,0.29121831,686.77,685.0,0.45]
[1748491489325,0.29121831,686.77,685.01,0.56605342]
[1748491489531,0.29121831,686.77,685.02,0.56605329]
[1748491489731,0.29121831,686.77,685.03,0.56605329]
[1748491490030,0.29121831,686.77,685.04,1.02976869]
[1748491490225,0.29121831,686.77,685.05,0.56608221]
[1748491490529,0.29121831,686.77,685.04,0.46368648]
[1748491490530,0.29121831,686.77,685.06,0.56608231]
[1748491490826,0.29121831,686.77,685.07,0.566084]
[1748491491026,0.29121831,686.77,685.0,0.45]
[1748491491027,0.29121831,686.77,685.08,0.56608022]
[1748491491225,0.29121831,686.77,685.09,0.56608022]
[1748491491427,0.29121831,686.77,685.0,0.45]
[1748491491428,0.29121831,686.77,685.1,0.56608022]
[1748491491627,0.29121831,686.77,685.11,0.56608022]
[1748491491830,0.29121831,686.77,685.0,0.45]
[1748491492026,0.29121831,686.77,685.01,0.56608237]
[1748491492226,0.29121831,686.77,685.02,0.56608237]
[1748491492432,0.29121831,686.77,685.03,0.56608344]
[1748491492734,0.29121831,686.77,685.0,0.45]
[1748491493127,0.29121831,686.77,685.01,0.56608188]
[1748491493327,0.29121831,686.77,685.02,0.56608188]
[1748491493532,0.29121831,686.77,685.03,0.56608188]
[1748491493731,0.29121831,686.77,685.04,0.5660837]
[1748491493932,0.29121831,686.77,685.05,0.5660837]
[1748491494135,0.29121831,686.77,685.06,0.56608607]
[1748491494331,0.29121831,686.77,685.07,0.56608607]
[1748491494640,0.29121831,686.77,685.08,0.56603526]
[1748491494931,0.29121831,686.77,685.09,0.56603526]
[1748491495235,0.29121831,686.77,685.1,0.56603526]
[1748491495436,0.29121831,686.77,685.11,0.56603526]
[1748491495635,0.29121831,686.77,685.12,0.56603526]
[1748491495936,0.29121831,686.77,685.13,0.56609275]
[1748491496135,0.29121831,686.77,685.14,0.56608687]
[1748491496337,0.29121831,686.77,685.15,0.56608687]
[1748491496636,0.29121831,686.77,685.16,0.56608999]
[1748491496836,0.29121831,686.77,685.17,0.56608999]
[1748491497037,0.29121831,686.77,685.18,0.56608999]
[1748491497236,0.29121831,686.77,685.19,0.56609547]
[1748491497533,0.29121831,686.77,685.0,0.45]
[1748491497733,0.29121831,686.77,685.01,0.56609519]
[1748491497938,0.29121831,686.77,685.02,0.56609469]
[1748491498140,0.29121831,686.77,685.03,0.56609469]
[1748491498340,0.29121831,686.77,685.04,0.56609469]
[1748491498538,0.29121831,686.77,685.05,0.5660987]
[1748491498734,0.29121831,686.77,685.06,0.5660987]
[1748491498933,0.29121831,686.77,685.07,0.5660987]
[1748491499240,0.29121831,686.77,685.0,0.45]
[1748491499435,0.29121831,686.77,685.01,0.56610635]
[1748491499641,0.29121831,686.77,685.0,0.45]
[1748491499935,0.29121831,686.77,685.01,0.56612335]
[1748491500138,0.29121831,686.77,685.0,0.45]
[1748491500341,0.29121831,686.77,685.01,0.56612331]
[1748491500538,0.29121831,686.77,685.02,0.56612346]
[1748491500736,0.29121831,686.77,685.0,0.45]
[1748491502442,0.29121831,686.77,685.01,0.56612394]
[1748491502645,0.29121831,686.77,685.02,0.56612394]
[1748491502937,0.29121831,686.77,685.0,0.45]
[1748491503738,0.29121831,686.77,685.01,0.56617178]
[1748491503944,0.29121831,686.77,685.02,0.56617178]
[1748491504241,0.29121831,686.77,685.0,0.45]
[1748491504742,0.29121831,686.77,685.01,0.56617178]
[1748491504943,0.29121831,686.77,685.02,0.56633917]
[1748491505140,0.29121831,686.77,685.0,0.45]
[1748491506040,0.29121831,686.77,685.01,0.56656618]
[1748491506246,0.29121831,686.77,685.0,0.45]
[1748491506639,0.29121831,686.77,685.01,0.56656582]
[1748491506943,0.29121831,686.77,685.0,0.45]
[1748491507345,0.29121831,686.77,685.01,0.379]
[1748491508048,0.29121831,686.77,685.02,0.56656591]
[1748491508244,0.29121831,686.77,685.03,0.56667086]
[1748491508444,0.29121831,686.77,685.01,0.379]
[1748491508644,0.29121831,686.77,685.02,0.56667099]
[1748491508843,0.29121831,686.77,685.01,0.379]
[1748491509045,0.29121831,686.77,685.02,0.56603]
[1748491509246,0.29121831,686.77,685.03,0.56598017]
[1748491509444,0.29121831,686.77,685.04,0.56598017]
[1748491509646,0.29121831,686.77,685.05,0.56598017]
[1748491509846,0.29121831,686.77,685.06,0.56598017]
[1748491510042,0.29121831,686.77,685.07,0.56598017]
[1748491510246,0.29121831,686.77,685.08,0.56553541]
[1748491510445,0.29121831,686.77,685.01,0.379]
[1748491510645,0.29121831,686.77,685.02,0.56553523]
[1748491510947,0.29121831,686.77,685.03,0.56553523]
[1748491511141,0.29121831,686.77,685.04,0.56553523]
[1748491511344,0.29121831,686.77,685.05,0.56553337]
[1748491511641,0.29121831,686.77,685.06,0.56553337]
[1748491511846,0.29121831,686.77,685.07,0.56520103]
[1748491512140,0.29121831,686.77,685.01,0.379]
[1748491512343,0.29121831,686.77,685.02,0.56520229]
[1748491512548,0.29121831,686.77,685.03,0.56520243]
[1748491512747,0.29121831,686.77,685.04,0.56520243]
[1748491512949,0.29121831,686.77,685.05,0.56520243]
[1748491513144,0.29121831,686.77,685.06,0.56520243]
[1748491513348,0.29121831,686.77,685.01,0.379]
[1748491513548,0.29121831,686.77,685.02,0.5649314]
[1748491513844,0.29121831,686.77,685.03,0.56471275]
[1748491514048,0.29121831,686.77,685.01,0.379]
[1748491514249,0.29121831,686.77,685.02,0.56468907]
[1748491514549,0.29121831,686.77,685.03,0.56468907]
[1748491514749,0.29121831,686.77,685.04,0.56468888]
[1748491515050,0.29121831,686.77,685.05,0.56469018]
[1748491515248,0.29121831,686.77,685.06,0.56469018]
[1748491515450,0.29121831,686.77,685.07,0.56469018]
[1748491515744,0.29121831,686.77,685.01,0.379]
[1748491515745,0.29121831,686.77,685.08,0.56430301]
[1748491516048,0.29121831,686.77,685.09,0.56430301]
[1748491516350,0.29121831,686.77,685.01,0.379]
[1748491516550,0.29121831,686.77,685.02,0.56431503]
[1748491516750,0.29121831,686.77,685.03,0.564315]
[1748491516946,0.29121831,686.77,685.04,0.564315]
[1748491517148,0.29121831,686.77,685.05,0.564315]
[1748491517349,0.29121831,686.77,685.06,0.564315]
[1748491517552,0.29121831,686.77,685.01,0.379]
[1748491517553,0.29121831,686.77,685.07,0.56410726]
[1748491517845,0.29121831,686.77,685.08,0.5641063]
[1748491518051,0.29121831,686.77,685.09,0.5641063]
[1748491518250,0.29121831,686.77,685.1,0.5641063]
[1748491518449,0.29121831,686.77,685.11,0.56410714]
[1748491518746,0.29121831,686.77,685.12,0.56410714]
[1748491518953,0.29121831,686.77,685.13,0.56395756]
[1748491519149,0.29121831,686.77,685.14,0.56395756]
[1748491519345,0.29121831,686.77,685.15,0.56395756]
[1748491519549,0.29121831,686.77,685.16,0.56395754]
[1748491519747,0.29121831,686.77,685.17,0.56395754]
[1748491519951,0.29121831,686.77,685.18,0.56383475]
[1748491520151,0.29121831,686.77,685.19,0.5638536]
[1748491520352,0.29121831,686.77,685.01,0.379]
[1748491520551,0.29121831,686.77,685.02,0.56385436]
[1748491520848,0.29121831,686.77,685.03,0.56385436]
[1748491521053,0.29121831,686.77,685.01,0.379]
[1748491521654,0.29121831,686.77,685.02,0.56369595]
[1748491521955,0.29121831,686.77,685.03,0.56369656]
[1748491522249,0.29121831,686.77,685.04,0.56369656]
[1748491522447,0.29121831,686.77,685.0,0.45]
[1748491522448,0.29121831,686.77,685.05,0.56356614]
[1748491522651,0.29121831,686.77,685.0,0.45]
[1748491522652,0.29121831,686.77,685.06,0.56356614]
[1748491522854,0.29121831,686.77,685.07,0.56361616]
[1748491523152,0.29121831,686.77,685.08,0.56361616]
[1748491523353,0.29121831,686.77,685.09,0.56361616]
[1748491523554,0.29121831,686.77,685.1,0.56361586]
[1748491523749,0.29121831,686.77,685.11,0.56361586]
[1748491523949,0.29121831,686.77,685.0,0.45]
[1748491524154,0.29121831,686.77,685.01,0.56345342]
[1748491524353,0.29121831,686.77,685.02,0.56345342]
[1748491524555,0.29121831,686.77,685.03,0.56345255]
[1748491524755,0.29121831,686.77,685.04,0.56345252]
[1748491524954,0.29121831,686.77,685.03,0.427]
[1748491524955,0.29121831,686.77,685.05,0.56345252]
[1748491525156,0.29121831,686.77,685.06,0.56345252]
[1748491525357,0.29121831,686.77,685.07,0.56331648]
[1748491525552,0.29121831,686.77,685.03,0.427]
[1748491525553,0.29121831,686.77,685.08,0.56331657]
[1748491525758,0.29121831,686.77,685.09,0.56323535]
[1748491525957,0.29121831,686.77,685.1,0.56323535]
[1748491526157,0.29121831,686.77,685.11,0.56323535]
[1748491526352,0.29121831,686.77,685.03,0.427]
[1748491526557,0.29121831,686.77,685.04,0.56323529]
[1748491526857,0.29121831,686.77,685.05,0.56323529]
[1748491527056,0.29121831,686.77,685.06,0.56323529]
[1748491527255,0.29121831,686.77,685.07,0.5631806]
[1748491527457,0.29121831,686.77,685.08,0.5631806]
[1748491527656,0.29121831,686.77,685.09,0.5631806]
[1748491527857,0.29121831,686.77,685.1,0.56307252]
[1748491528056,0.29121831,686.77,685.11,0.56302924]
[1748491528253,0.29121831,686.77,685.12,0.56302974]
[1748491528452,0.29121831,686.77,685.03,0.427]
[1748491528453,0.29121831,686.77,685.13,0.56302974]
[1748491528655,0.29121831,686.77,685.14,0.56302974]
[1748491528853,0.29121831,686.77,685.03,0.427]
[1748491529358,0.29121831,686.77,685.04,0.56298088]
[1748491529558,0.29121831,686.77,685.05,0.56298088]
[1748491529759,0.29121831,686.77,685.06,0.56298511]
[1748491529954,0.29121831,686.77,685.07,0.56288848]
[1748491530258,0.29121831,686.77,685.03,0.427]
[1748491530559,0.29121831,686.77,685.04,0.56288756]
[1748491530758,0.29121831,686.77,685.05,0.56288756]
[1748491530957,0.29121831,686.77,685.03,0.427]
[1748491531163,0.29121831,686.77,685.04,0.56280119]
[1748491531356,0.29121831,686.77,685.05,0.56280119]
[1748491531558,0.29121831,686.77,685.06,0.56275598]
[1748491531856,0.29121831,686.77,685.07,0.95175617]
[1748491532061,0.29121831,686.77,685.08,0.56275617]
[1748491532256,0.29121831,686.77,685.09,0.56275617]
[1748491532461,0.29121831,686.77,685.1,0.5627843]
[1748491532663,0.29121831,686.77,685.11,0.5627843]
[1748491532960,0.29121831,686.77,685.12,0.5627843]
[1748491533159,0.29121831,686.77,685.13,0.5627305]
[1748491533464,0.29121831,686.77,685.14,0.56273066]
[1748491533656,0.29121831,686.77,685.07,0.389]
[1748491533856,0.29121831,686.77,685.08,0.56273212]
[1748491534054,0.29121831,686.77,685.09,0.56273212]
[1748491534261,0.29121831,686.77,685.1,0.56273212]
[1748491534558,0.29121831,686.77,685.11,0.56265754]
[1748491534756,0.29121831,686.77,685.07,0.389]
[1748491535462,0.29121831,686.77,685.08,0.56265977]
[1748491535656,0.29121831,686.77,685.07,0.389]
[1748491535657,0.29121831,686.77,685.09,0.56265977]
[1748491535856,0.29121831,686.77,685.1,0.56265977]
[1748491536061,0.29121831,686.77,685.11,0.56265644]
[1748491536357,0.29121831,686.77,685.12,0.56265649]
[1748491536558,0.29121831,686.77,685.13,0.56265649]
[1748491536758,0.29121831,686.77,685.14,0.56266251]
[1748491537057,0.29121831,686.77,685.07,0.389]
[1748491537357,0.29121831,686.77,685.08,0.56267164]
[1748491537557,0.29121831,686.77,685.09,0.56267169]
[1748491537761,0.29121831,686.77,685.1,0.56267169]
[1748491537962,0.29121831,686.77,685.11,0.56267169]
[1748491538158,0.29121831,686.77,685.12,0.56269074]
[1748491538359,0.29121831,686.77,685.13,0.56269074]
[1748491538559,0.29121831,686.77,685.14,0.56269074]
[1748491538762,0.29121831,686.77,685.07,0.389]
[1748491538958,0.29121831,686.77,685.08,0.56270491]
[1748491539258,0.29121831,686.77,685.07,0.389]
[1748491539259,0.29121831,686.77,685.09,0.56270491]
[1748491539563,0.29121831,686.77,685.07,0.389]
[1748491539764,0.29121831,686.77,685.08,0.56272094]
[1748491539962,0.29121831,686.77,685.09,0.56272094]
[1748491540159,0.29121831,686.77,685.1,0.56272048]
[1748491540362,0.29121831,686.77,685.11,0.56271989]
[1748491540566,0.29121831,686.77,685.07,0.389]
[1748491540567,0.29121831,686.77,685.12,0.56271989]
[1748491540864,0.29121831,686.77,685.13,0.5627369]
[1748491541061,0.29121831,686.77,685.14,0.5627369]
[1748491541260,0.29121831,686.77,685.07,0.389]
[1748491541561,0.29121831,686.77,685.08,0.56277843]
[1748491541766,0.29121831,686.77,685.09,0.56277843]
[1748491542062,0.29121831,686.77,685.07,0.389]
[1748491542266,0.29121831,686.77,685.08,0.56279991]
[1748491542462,0.29121831,686.77,685.09,0.56279991]
[1748491542669,0.29121831,686.77,685.1,0.56279991]
[1748491542869,0.29121831,686.77,685.11,0.56284998]
[1748491543061,0.29121831,686.77,685.07,0.389]
[1748491543265,0.29121831,686.77,685.08,0.56287496]
[1748491543463,0.29121831,686.77,685.07,0.389]
[1748491543464,0.29121831,686.77,685.09,0.56287503]
[1748491543669,0.29121831,686.77,685.1,0.56287503]
[1748491543869,0.29121831,686.77,685.11,0.56287503]
[1748491544069,0.29121831,686.77,685.12,0.56287503]
[1748491544264,0.29121831,686.77,685.07,0.389]
[1748491544569,0.29121831,686.77,685.08,0.56296384]
[1748491544770,0.29121831,686.77,685.09,0.56303716]
[1748491544966,0.29121831,686.77,685.07,0.389]
[1748491545173,0.29121831,686.77,685.08,0.56303719]
[1748491545369,0.29121831,686.77,685.09,0.56303719]
[1748491545570,0.29121831,686.77,685.1,0.56303719]
[1748491545872,0.29121831,686.77,685.11,0.56306878]
[1748491546067,0.29121831,686.77,685.07,0.389]
[1748491546467,0.29121831,686.77,685.08,0.444]
[1748491546670,0.29121831,686.77,685.08,1.0071653]
[1748491546869,0.29121831,686.77,685.09,0.5631653]
[1748491547675,0.29121831,686.77,685.1,0.56330904]
[1748491547869,0.29121831,686.77,685.11,0.56330904]
[1748491548073,0.29121831,686.77,685.12,0.56330904]
[1748491548276,0.29121831,686.77,685.13,0.56330904]
[1748491548471,0.29121831,686.77,685.14,0.56330904]
[1748491548777,0.29121831,686.77,685.15,0.56364934]
[1748491548974,0.29121831,686.77,685.16,0.56364955]
[1748491549171,0.29121831,686.77,685.17,0.56364955]
[1748491549374,0.29121831,686.77,685.18,0.56364957]
[1748491549576,0.29121831,686.77,685.08,0.444]
[1748491549777,0.29121831,686.77,685.09,0.56365165]
[1748491549977,0.29121831,686.77,685.1,0.56365165]
[1748491550172,0.29121831,686.77,685.08,0.444]
[1748491550173,0.29121831,686.77,685.11,0.56365165]
[1748491550378,0.29121831,686.77,685.12,0.56386025]
[1748491550579,0.29121831,686.77,685.13,0.56386025]
[1748491550872,0.29121831,686.77,685.14,0.56386025]
[1748491551079,0.29121831,686.77,685.15,0.56386025]
[1748491551274,0.29121831,686.77,685.16,0.56386025]
[1748491551574,0.29121831,686.77,685.17,0.5641146]
[1748491551778,0.29121831,686.77,685.18,0.5641146]
[1748491551974,0.29121831,686.77,685.19,0.5641146]
[1748491552281,0.29121831,686.77,685.2,0.56415043]
[1748491552574,0.29121831,686.77,685.08,0.444]
[1748491552776,0.29121831,686.77,685.09,0.56415001]
[1748491552979,0.29121831,686.77,685.1,0.56415102]
[1748491553278,0.29121831,686.77,685.11,0.56444493]
[1748491553476,0.29121831,686.77,685.12,0.56444493]
[1748491553673,0.29121831,686.77,685.13,0.56444493]
[1748491553877,0.29121831,686.77,685.14,0.56444493]
[1748491554076,0.29121831,686.77,685.15,0.56444493]
[1748491554275,0.29121831,686.77,685.16,0.5643734]
[1748491554479,0.29121831,686.77,685.17,0.56436805]
[1748491554678,0.29121831,686.77,685.08,0.444]
[1748491554679,0.29121831,686.77,685.18,0.5643676]
[1748491554974,0.29121831,686.77,685.19,0.5643676]
[1748491555178,0.29121831,686.77,685.08,0.444]
[1748491555179,0.29121831,686.77,685.2,0.5643676]
[1748491555379,0.29121831,686.77,685.21,0.5643676]
[1748491555678,0.29121831,686.77,685.22,0.5643676]
[1748491555879,0.29121831,686.77,685.23,0.56507785]
[1748491556075,0.29121831,686.77,685.24,0.56507785]
[1748491556279,0.29121831,686.77,685.25,0.56507785]
[1748491556479,0.29121831,686.77,685.26,0.56507785]
[1748491556679,0.29121831,686.77,685.08,0.444]
[1748491556680,0.29121831,686.77,685.27,0.56507785]
[1748491556876,0.29121831,686.77,685.28,0.56507785]
[1748491557076,0.29121831,686.77,685.29,0.56552735]
[1748491557280,0.29121831,686.77,685.3,0.56552635]
[1748491557575,0.29121831,686.77,685.31,0.56552633]
[1748491557876,0.29121831,686.77,685.08,0.444]
[1748491558080,0.29121831,686.77,685.09,0.56607865]
[1748491558274,0.29121831,686.77,685.1,0.56607865]
[1748491558480,0.29121831,686.77,685.11,0.56607865]
[1748491558675,0.29121831,686.77,685.08,0.444]
[1748491558878,0.29121831,686.77,685.09,0.56689187]